bitfinex-derivatives/quotes_BTCF0:USTF0_20250318
["timestamp","ask_amount","ask_price","bid_price","bid_amount"]
[1742279998370,0.3109975,82563.0,82562.0,0.27251304]
[1742280000359,0.1249653,82563.0,82562.0,0.55251304]
[1742280001068,0.0605653,82563.0,82562.0,0.55251304]
[1742280001463,0.1996653,82563.0,82562.0,0.55251304]
[1742280001969,0.1996653,82563.0,82562.0,0.27251304]
[1742280002163,0.1996653,82563.0,82562.0,0.08378234]
[1742280003168,0.1996653,82563.0,82562.0,0.15338234]
[1742280003965,0.1996653,82563.0,82562.0,0.50451304]
[1742280003966,0.0605653,82563.0,82562.0,0.50451304]
[1742280005174,0.1260653,82563.0,82562.0,0.50451304]
[1742280005565,0.1915653,82563.0,82562.0,0.38338234]
[1742280006164,0.1915653,82563.0,82562.0,0.15338234]
[1742280006565,0.1915653,82563.0,82562.0,0.08378234]
[1742280007171,0.0605653,82563.0,82562.0,0.08378234]
[1742280007373,0.18281302,82565.0,82564.0,0.1211278]
[1742280007577,0.18145302,82565.0,82562.0,0.14858234]
[1742280007874,0.1211293,82563.0,82562.0,0.26971304]
[1742280008075,0.1211293,82563.0,82562.0,0.2559307]
[1742280008271,0.1211293,82563.0,82562.0,0.5359307]
[1742280008578,0.1211293,82563.0,82562.0,0.20509467]
[1742280008972,0.1211293,82563.0,82562.0,0.08396397]
[1742280009278,0.2532293,82563.0,82562.0,0.20509467]
[1742280009476,0.2532293,82563.0,82562.0,0.21916602]
[1742280009778,0.2532293,82563.0,82562.0,0.28606602]
[1742280009973,0.2532293,82563.0,82562.0,0.15086397]
[1742280010180,0.2532293,82563.0,82562.0,0.08396397]
[1742280010472,0.1211439,82553.0,82552.0,0.134431]
[1742280011775,0.1861439,82553.0,82552.0,0.201331]
[1742280011974,0.1861439,82553.0,82552.0,0.202331]
[1742280012275,0.1211513,82548.0,82547.0,0.1898527]
[1742280012476,0.1181513,82548.0,82547.0,0.1901527]
[1742280013075,0.2525513,82548.0,82547.0,0.2036641]
[1742280013671,0.2525513,82548.0,82547.0,0.2086641]
[1742280015184,0.2525513,82548.0,82547.0,0.0875114]
[1742280015680,0.2525513,82548.0,82547.0,0.0185114]
[1742280016168,0.2525513,82548.0,82547.0,0.1396641]
[1742280018278,0.2525513,82548.0,82547.0,0.0185114]
[1742280018784,0.39767877,82548.0,82547.0,0.1396641]
[1742280019484,0.39767877,82548.0,82547.0,0.0185114]
[1742280019688,0.40767877,82548.0,82547.0,0.0185114]
[1742280020880,0.52619877,82548.0,82547.0,0.1396641]
[1742280021281,0.52619877,82548.0,82547.0,0.0185114]
[1742280022087,0.3810713,82548.0,82547.0,0.0185114]
[1742280022297,0.2625513,82548.0,82547.0,0.0185114]
[1742280022790,0.2625513,82548.0,82547.0,0.005]
[1742280022791,0.6233513,82548.0,82547.0,0.005]
[1742280022984,0.6233513,82548.0,82547.0,0.01894749]
[1742280023381,0.6233513,82548.0,82547.0,0.005]
[1742280024587,0.1211689,82536.0,82505.0,1.00080989]
[1742280024890,0.3608,82506.0,82484.0,0.6841333]
[1742280025075,0.3608,82506.0,82465.0,0.006]
[1742280025076,0.1212703,82467.0,82466.0,0.78666852]
[1742280025278,0.48992,82467.0,82466.0,0.00064]
[1742280025491,0.63992,82467.0,82444.0,0.006]
[1742280025686,0.4821026,82445.0,82444.0,0.006]
[1742280025889,0.11270364,82457.0,82456.0,0.1212865]
[1742280026074,0.3608,82460.0,82450.0,0.1212953]
[1742280026276,0.52640364,82480.0,82464.0,0.36965462]
[1742280026277,4e-08,82465.0,82464.0,0.36965462]
[1742280026585,0.3608,82490.0,82489.0,0.1212379]
[1742280026785,0.3608,82490.0,82489.0,0.12252]
[1742280026985,0.3608,82490.0,82455.0,0.4214435]
[1742280026986,0.4508,82490.0,82455.0,0.4214435]
[1742280027293,0.3608,82483.0,82472.0,0.0606313]
[1742280027479,0.1212522,82480.0,82477.0,0.1212552]
[1742280027791,0.4820478,82483.0,82474.0,0.06063]
[1742280028094,0.3608,82483.0,82481.0,0.1212497]
[1742280028289,0.7216,82483.0,82482.0,0.1212482]
[1742280028595,0.8428468,82483.0,82482.0,0.12292]
[1742280028778,0.121249,82482.0,82480.0,0.1212498]
[1742280028978,0.1212497,82481.0,82480.0,0.1212498]
[1742280029385,0.7832236,82483.0,82474.0,0.1212594]
[1742280029587,0.7842236,82483.0,82479.0,0.1212526]
[1742280029808,0.1212497,82481.0,82480.0,0.0644]
[1742280030191,0.1212659,82470.0,82465.0,0.1212724]
[1742280030489,0.4820659,82470.0,82457.0,0.12312]
[1742280030694,0.1212747,82464.0,82455.0,0.00924276]
[1742280030894,0.1212747,82464.0,82452.0,0.244452]
[1742280031095,0.1212747,82464.0,82452.0,0.2444516]
[1742280031392,0.1214747,82464.0,82452.0,0.12316]
[1742280031593,0.3608,82465.0,82463.0,1.0412748]
[1742280031895,0.3608,82465.0,82464.0,0.1212747]
[1742280032092,0.3608,82465.0,82464.0,0.1879747]
[1742280032588,0.3608,82480.0,82466.0,0.0606355]
[1742280032797,0.36098194,82486.0,82477.0,0.1212549]
[1742280032984,0.36098194,82486.0,82478.0,0.91062644]
[1742280033181,0.1212526,82479.0,82478.0,0.78814644]
[1742280033387,0.1212526,82479.0,82478.0,0.18998]
[1742280033587,0.0606251,82481.0,82474.0,0.3608]
[1742280033790,0.1212717,82466.0,82465.0,0.0667]
[1742280034587,0.1212717,82466.0,82465.0,0.1879732]
[1742280034788,0.0606333,82470.0,82469.0,0.1212673]
[1742280034984,0.0606333,82470.0,82469.0,0.36964722]
[1742280035193,0.1212628,82473.0,82472.0,0.1212581]
[1742280035400,0.1212628,82473.0,82472.0,0.2446981]
[1742280035600,0.1212628,82473.0,82472.0,0.74778008]
[1742280035897,0.1212628,82473.0,82472.0,1.1174182]
[1742280036597,0.53288921,82473.0,82472.0,0.98604303]
[1742280036800,0.53388921,82473.0,82472.0,0.98604303]
[1742280037495,0.53388921,82473.0,82472.0,0.86478483]
[1742280037696,0.20698998,82473.0,82472.0,0.61640491]
[1742280037891,0.20698998,82473.0,82472.0,0.49304491]
[1742280038099,0.20798998,82473.0,82472.0,0.37364168]
[1742280038701,0.20798998,82473.0,82472.0,0.25237878]
[1742280038997,0.1212717,82466.0,82465.0,0.0667]
[1742280039191,0.1212717,82466.0,82465.0,0.1899]
[1742280039597,0.1212717,82466.0,82465.0,0.0667]
[1742280040198,0.1212776,82462.0,82461.0,0.05644284]
[1742280040403,0.1212776,82462.0,82461.0,0.25257878]
[1742280040603,0.1212776,82462.0,82461.0,0.37385788]
[1742280041003,0.1212776,82462.0,82461.0,0.63625285]
[1742280041202,0.1212776,82462.0,82461.0,0.38799293]
[1742280042090,0.1232776,82462.0,82461.0,0.37397788]
[1742280042795,0.1232776,82462.0,82461.0,0.44287788]
[1742280042993,0.1232776,82462.0,82461.0,0.26090419]
[1742280043294,0.1232776,82462.0,82461.0,0.27490069]
[1742280043497,0.1232776,82462.0,82461.0,0.34220069]
[1742280044191,0.1232776,82462.0,82461.0,0.32792419]
[1742280045093,0.002,82462.0,82461.0,1.17630411]
[1742280045293,0.20800478,82462.0,82461.0,1.17630411]
[1742280045495,0.20800478,82462.0,82461.0,0.15020501]
[1742280045698,0.20800478,82462.0,82461.0,0.27376501]
[1742280046100,0.20800478,82462.0,82461.0,0.1362]
[1742280046301,0.20800478,82462.0,82461.0,0.25972]
[1742280047298,0.20800478,82462.0,82461.0,0.1362]
[1742280047503,0.1212982,82448.0,82447.0,0.92064]
[1742280047697,0.1212997,82447.0,82446.0,0.0626]
[1742280047900,0.1212997,82447.0,82446.0,0.18604]
[1742280048909,0.1212997,82447.0,82446.0,0.19993056]
[1742280049093,0.1222997,82447.0,82446.0,0.19993056]
[1742280049408,0.1222997,82447.0,82446.0,0.07649056]
[1742280049607,0.1232997,82447.0,82446.0,0.19981056]
[1742280050305,0.53492611,82447.0,82446.0,0.21419513]
[1742280050494,0.59557661,82447.0,82446.0,0.12324]
[1742280051706,0.59557661,82447.0,82446.0,0.12316]
[1742280053709,0.59557661,82447.0,82446.0,0.1463861]
[1742280053903,0.59557661,82447.0,82446.0,0.0232261]
[1742280054104,0.59557661,82447.0,82446.0,0.1461861]
[1742280055108,0.59557661,82447.0,82446.0,0.12296]
[1742280055706,0.59557661,82447.0,82446.0,0.37133992]
[1742280055903,0.41362641,82447.0,82446.0,0.49264112]
[1742280056411,0.53492611,82447.0,82446.0,0.49264112]
[1742280056606,0.41362641,82447.0,82446.0,0.55974112]
[1742280057113,0.1212916,82453.0,82452.0,0.1212909]
[1742280057305,0.1212916,82453.0,82452.0,0.39290579]
[1742280057609,0.1212916,82453.0,82452.0,0.62323497]
[1742280057995,0.1857916,82453.0,82452.0,0.62323497]
[1742280058199,0.1212916,82453.0,82452.0,0.62323497]
[1742280058398,0.1222916,82453.0,82452.0,0.40483897]
[1742280059709,0.1232916,82453.0,82452.0,0.40483897]
[1742280059911,0.002,82453.0,82452.0,0.77451119]
[1742280060210,0.1232909,82453.0,82452.0,0.65321889]
[1742280060410,0.1232909,82453.0,82452.0,0.77451119]
[1742280060601,0.1232909,82453.0,82452.0,0.65321889]
[1742280060798,0.1232909,82453.0,82452.0,0.36967222]
[1742280061004,0.1232909,82453.0,82452.0,0.39267502]
[1742280061603,0.002,82453.0,82452.0,0.39267502]
[1742280061816,0.002,82453.0,82452.0,0.40592474]
[1742280062403,0.002,82453.0,82452.0,0.42058639]
[1742280062605,0.2194775,82469.0,82468.0,0.24837992]
[1742280062815,0.3407448,82469.0,82468.0,1.42775037]
[1742280063514,0.3407448,82469.0,82468.0,1.44204231]
[1742280063713,0.3417448,82469.0,82468.0,1.44204231]
[1742280063908,0.1222673,82469.0,82468.0,1.44204231]
[1742280064116,0.1222673,82469.0,82468.0,1.31944231]
[1742280064417,0.1222673,82469.0,82468.0,1.44182254]
[1742280064616,0.1232673,82469.0,82468.0,1.44282254]
[1742280064822,0.52610627,82469.0,82468.0,1.07309382]
[1742280065616,0.52610627,82469.0,82468.0,1.19436262]
[1742280065813,0.52610627,82469.0,82468.0,1.07188262]
[1742280066114,0.88690627,82469.0,82468.0,1.07321382]
[1742280066807,1.02480627,82469.0,82468.0,1.07321382]
[1742280067814,1.02480627,82469.0,82468.0,1.05873194]
[1742280068520,1.02480627,82469.0,82468.0,1.07304189]
[1742280068719,1.02480627,82469.0,82468.0,1.05873194]
[1742280069217,1.3344,82469.0,82438.0,0.1213118]
[1742280069518,1.3344,82469.0,82449.0,0.24837992]
[1742280069519,0.1212953,82450.0,82449.0,0.24837992]
[1742280069818,0.1212953,82450.0,82449.0,0.33021086]
[1742280070012,0.1212953,82450.0,82449.0,0.08183094]
[1742280070213,0.1212953,82450.0,82449.0,0.20312774]
[1742280070414,0.1212953,82450.0,82449.0,0.81230766]
[1742280071712,0.1212953,82450.0,82449.0,0.81230756]
[1742280071918,0.1222953,82450.0,82449.0,1.08230756]
[1742280072112,0.001,82450.0,82449.0,1.20466756]
[1742280072421,0.1819392,82454.0,82453.0,0.1212909]
[1742280072616,0.18211064,82458.0,82457.0,0.36966492]
[1742280072816,0.18211064,82458.0,82457.0,0.38507076]
[1742280073013,0.18211064,82458.0,82457.0,0.01433084]
[1742280073213,0.18211064,82458.0,82457.0,0.26285084]
[1742280073417,0.18211064,82458.0,82457.0,0.00805874]
[1742280075025,0.18211064,82458.0,82457.0,0.25643866]
[1742280075212,0.18311064,82458.0,82457.0,0.37872366]
[1742280075616,0.18411064,82458.0,82457.0,0.25743866]
[1742280076122,0.18411064,82458.0,82457.0,0.37872366]
[1742280076123,0.24641107,82458.0,82457.0,0.37872366]
[1742280076324,0.12512427,82458.0,82457.0,0.37872366]
[1742280076517,0.12512427,82458.0,82457.0,0.24937992]
[1742280076820,0.12512427,82458.0,82457.0,0.12344]
[1742280077223,0.25682427,82458.0,82457.0,0.12344]
[1742280080120,0.25682427,82458.0,82457.0,0.14725811]
[1742280080627,0.25682427,82458.0,82457.0,0.17201996]
[1742280081227,0.25682427,82458.0,82457.0,0.3082002]
[1742280081626,0.25682427,82458.0,82457.0,0.30833667]
[1742280081930,0.12512427,82458.0,82457.0,0.55671659]
[1742280083730,0.12512427,82458.0,82457.0,0.43427659]
[1742280083926,0.12512427,82458.0,82457.0,0.55651659]
[1742280084531,0.06448237,82458.0,82457.0,0.55651659]
[1742280084725,0.24037104,82469.0,82468.0,0.1212688]
[1742280084921,0.36163834,82469.0,82468.0,0.75534704]
[1742280085123,0.24037104,82469.0,82468.0,0.75534704]
[1742280085323,0.063,82476.0,82474.0,0.1212585]
[1742280085522,0.063,82476.0,82468.0,1.08715244]
[1742280085523,0.2448861,82476.0,82475.0,0.47462164]
[1742280085820,0.3081861,82476.0,82475.0,0.47462164]
[1742280086032,0.3081861,82476.0,82475.0,0.51333499]
[1742280086218,0.3081861,82476.0,82475.0,0.63459349]
[1742280086825,0.3081861,82476.0,82475.0,0.99539349]
[1742280087026,0.3091861,82476.0,82475.0,0.99539349]
[1742280087223,0.1828861,82476.0,82475.0,0.99539349]
[1742280087520,0.001,82476.0,82475.0,0.99539349]
[1742280087722,1e-08,82478.0,82477.0,0.1212556]
[1742280087928,0.0606244,82482.0,82479.0,0.0606256]
[1742280088132,0.12142834,82484.0,82483.0,0.1212468]
[1742280088426,0.12142834,82484.0,82483.0,0.45166237]
[1742280088627,0.12142834,82484.0,82483.0,0.57290917]
[1742280088823,0.12142834,82484.0,82483.0,0.70950917]
[1742280089020,0.25372834,82484.0,82483.0,0.70950917]
[1742280089533,0.00018194,82484.0,82483.0,0.70950917]
[1742280089849,0.2474335,82493.0,82491.0,0.121235]
[1742280090020,0.2474335,82493.0,82492.0,0.66984252]
[1742280090221,0.1212335,82493.0,82492.0,0.66984252]
[1742280090531,0.1212335,82493.0,82492.0,0.70855587]
[1742280090722,0.1212335,82493.0,82492.0,0.98508274]
[1742280090918,0.25416397,82494.0,82493.0,0.1212321]
[1742280091118,0.00018194,82501.0,82500.0,0.1212218]
[1742280091318,0.00018194,82501.0,82500.0,2.10475848]
[1742280091529,0.12140324,82501.0,82500.0,2.10475647]
[1742280091939,0.00018194,82501.0,82500.0,2.14346982]
[1742280092227,0.12140224,82501.0,82500.0,2.14346982]
[1742280092629,0.12240224,82501.0,82500.0,2.14446982]
[1742280093024,0.12240224,82501.0,82500.0,1.45960364]
[1742280093221,0.25220224,82501.0,82500.0,1.46560364]
[1742280093426,0.51220224,82501.0,82500.0,1.32719335]
[1742280093733,0.51220224,82501.0,82500.0,0.94257524]
[1742280094027,0.25220224,82501.0,82500.0,0.94257524]
[1742280094231,0.25220224,82501.0,82500.0,1.06533524]
[1742280094732,0.25220224,82501.0,82500.0,1.05933524]
[1742280094931,0.25120224,82501.0,82500.0,1.06333524]
[1742280095330,0.25120224,82501.0,82500.0,1.18455704]
[1742280096127,0.25120224,82501.0,82500.0,1.56893696]
[1742280096432,0.25120224,82501.0,82500.0,1.58619881]
[1742280096735,0.25120224,82501.0,82500.0,1.58219881]
[1742280096927,0.25120224,82501.0,82500.0,1.58419881]
[1742280097130,0.25120224,82501.0,82500.0,1.56893696]
[1742280097438,0.12140224,82501.0,82500.0,1.82893696]
[1742280098035,0.12140224,82501.0,82500.0,1.83896259]
[1742280098230,0.12140224,82501.0,82500.0,1.82493696]
[1742280098429,0.18084954,82502.0,82501.0,0.1212203]
[1742280098629,0.5426127,82510.0,82509.0,0.1212085]
[1742280098926,0.0606042,82510.0,82509.0,0.36958842]
[1742280099127,0.121205,82512.0,82511.0,0.1212041]
[1742280099327,0.121205,82512.0,82511.0,0.4012041]
[1742280099534,0.121205,82512.0,82511.0,0.64958402]
[1742280100034,0.121205,82512.0,82511.0,0.30996555]
[1742280100242,0.843805,82512.0,82511.0,0.01489524]
[1742280100539,0.1212085,82509.0,82508.0,0.12272]
[1742280101232,0.1152085,82509.0,82508.0,0.12272]
[1742280101431,0.1112085,82509.0,82508.0,0.12272]
[1742280101835,0.2401085,82509.0,82508.0,0.12272]
[1742280102030,0.2401085,82509.0,82508.0,0.12472]
[1742280102230,0.2401085,82509.0,82508.0,0.37309992]
[1742280102440,0.2401085,82509.0,82508.0,0.49430992]
[1742280102632,0.2401085,82509.0,82508.0,0.49330992]
[1742280102827,0.26567916,82510.0,82509.0,0.1212085]
[1742280103028,0.14447186,82510.0,82509.0,0.6442033]
[1742280103227,0.0605976,82518.0,82515.0,0.2423935]
[1742280103435,0.1211968,82517.0,82516.0,0.18678]
[1742280103636,0.2500968,82517.0,82516.0,0.20223593]
[1742280103833,0.2500968,82517.0,82516.0,0.46523073]
[1742280104036,0.12137423,82520.0,82519.0,0.1211939]
[1742280104235,0.00018183,82520.0,82519.0,0.67954869]
[1742280104432,0.1211888,82523.0,82522.0,0.1211895]
[1742280104637,0.0605928,82525.0,82524.0,0.36956642]
[1742280104831,0.060586,82534.0,82531.0,0.0605878]
[1742280105028,0.1817616,82533.0,82532.0,0.3079133]
[1742280105537,0.1682616,82533.0,82532.0,0.55629322]
[1742280105740,0.2312616,82533.0,82532.0,0.55629322]
[1742280106037,0.2981616,82533.0,82532.0,0.5709081]
[1742280106240,0.3001616,82533.0,82532.0,0.5709081]
[1742280106937,0.2530748,82533.0,82532.0,0.5709081]
[1742280107138,0.1241748,82533.0,82532.0,0.58612534]
[1742280108345,0.1221748,82533.0,82532.0,0.58612534]
[1742280108643,0.1221748,82533.0,82532.0,0.59012534]
[1742280108833,0.1880748,82533.0,82532.0,0.59012534]
[1742280110043,0.1870748,82533.0,82532.0,0.59612534]
[1742280110245,0.2510748,82533.0,82532.0,0.4594148]
[1742280110443,0.2510748,82533.0,82532.0,0.56597472]
[1742280110634,0.2510748,82533.0,82532.0,0.14558467]
[1742280110839,0.2510748,82533.0,82532.0,0.26786467]
[1742280111349,0.2510748,82533.0,82532.0,0.2830352]
[1742280111551,0.2510748,82533.0,82532.0,0.2770352]
[1742280111747,0.2510748,82533.0,82532.0,0.2820352]
[1742280111943,0.2510748,82533.0,82524.0,0.92058183]
[1742280111944,0.121185,82525.0,82524.0,0.92058183]
[1742280112448,0.481985,82525.0,82524.0,0.92058183]
[1742280112751,0.1211983,82516.0,82515.0,0.12288]
[1742280113138,0.1211983,82516.0,82515.0,0.49245962]
[1742280113337,0.1121983,82516.0,82515.0,0.39293558]
[1742280113536,0.1121983,82516.0,82515.0,0.51577558]
[1742280114058,0.18196973,82524.0,82523.0,0.121188]
[1742280114243,0.31326973,82524.0,82523.0,0.37117992]
[1742280114949,0.31326973,82524.0,82523.0,0.50567992]
[1742280115244,0.31226973,82524.0,82523.0,0.28065596]
[1742280115446,0.31226973,82524.0,82523.0,0.15785596]
[1742280115650,0.31226973,82524.0,82523.0,0.14603596]
[1742280115949,0.31226973,82524.0,82523.0,0.12268]
[1742280116147,0.18096973,82524.0,82523.0,0.49224792]
[1742280116444,0.481985,82525.0,82524.0,0.1211865]
[1742280116647,0.481985,82525.0,82524.0,0.78550525]
[1742280116844,0.3608,82525.0,82524.0,0.85490525]
[1742280117042,0.121185,82525.0,82524.0,0.91549785]
[1742280117242,0.121185,82525.0,82524.0,0.93852314]
[1742280120254,0.122185,82525.0,82524.0,0.93940851]
[1742280121653,0.001,82525.0,82524.0,0.94040851]
[1742280121857,0.122185,82525.0,82524.0,0.94040851]
[1742280122057,0.122185,82525.0,82524.0,0.94053662]
[1742280122247,0.122185,82525.0,82524.0,0.93953662]
[1742280122449,0.123185,82525.0,82524.0,0.75875752]
[1742280122756,0.255585,82525.0,82524.0,1.00222402]
[1742280122958,0.253585,82525.0,82524.0,0.88003752]
[1742280123154,0.254585,82525.0,82524.0,0.88103752]
[1742280123353,0.254585,82525.0,82524.0,1.00222402]
[1742280123558,0.254585,82525.0,82524.0,0.71697171]
[1742280123949,0.253585,82525.0,82524.0,0.54421264]
[1742280124151,0.253585,82525.0,82524.0,0.70527364]
[1742280124652,0.253585,82525.0,82524.0,0.68107452]
[1742280124851,0.253585,82525.0,82524.0,0.55988802]
[1742280125053,0.253585,82525.0,82524.0,0.68107452]
[1742280125262,0.253585,82525.0,82524.0,0.58403798]
[1742280125459,0.253585,82525.0,82524.0,0.1197881]
[1742280125656,0.253585,82525.0,82524.0,0.1759281]
[1742280125961,0.253585,82525.0,82524.0,0.17676614]
[1742280126360,0.253585,82525.0,82524.0,0.05452614]
[1742280126553,0.253585,82525.0,82507.0,0.00018183]
[1742280126554,0.12121,82508.0,82507.0,0.00018183]
[1742280126754,0.12121,82508.0,82507.0,0.21032449]
[1742280126960,0.12021,82508.0,82507.0,0.57991591]
[1742280127372,0.0606023,82512.0,82511.0,0.1818048]
[1742280127557,0.0606023,82512.0,82511.0,0.37298202]
[1742280127758,0.0606023,82512.0,82511.0,0.46455489]
[1742280128153,0.1282023,82512.0,82511.0,0.46455489]
[1742280128357,0.3608,82534.0,82515.0,0.0605991]
[1742280128566,0.1817951,82518.0,82517.0,0.36957672]
[1742280128760,0.1817951,82518.0,82517.0,0.39358194]
[1742280129062,0.1817951,82518.0,82517.0,0.52418194]
[1742280129661,0.1211924,82520.0,82519.0,0.1211939]
[1742280129857,0.1211924,82520.0,82519.0,0.39359746]
[1742280130058,0.33750106,82520.0,82519.0,0.52819746]
[1742280130760,0.21630866,82520.0,82519.0,0.88899746]
[1742280130966,0.33750106,82520.0,82519.0,0.88899746]
[1742280131769,0.21630866,82520.0,82519.0,0.88899746]
[1742280132361,0.33750106,82520.0,82519.0,0.88899746]
[1742280132570,0.21630866,82520.0,82519.0,1.14999746]
[1742280132765,0.21630866,82520.0,82519.0,1.15299746]
[1742280132960,0.0605918,82526.0,82525.0,0.121185]
[1742280133161,0.2582762,82531.0,82530.0,0.24837992]
[1742280133465,0.1891762,82531.0,82530.0,0.67358126]
[1742280134370,0.2602762,82531.0,82530.0,0.67358126]
[1742280135568,0.2612762,82531.0,82530.0,0.67358126]
[1742280135768,0.2612762,82531.0,82530.0,0.27240356]
[1742280135963,0.2602762,82531.0,82530.0,0.24837992]
[1742280136163,0.2602762,82531.0,82530.0,0.36955762]
[1742280136570,0.2592762,82531.0,82530.0,0.37155762]
[1742280136867,0.2582762,82531.0,82530.0,0.37555762]
[1742280137263,0.2582762,82531.0,82530.0,0.25437992]
[1742280137564,0.31719468,82531.0,82530.0,0.37555762]
[1742280138357,0.18009468,82531.0,82530.0,0.37555762]
[1742280138563,0.31319468,82531.0,82530.0,0.39016648]
[1742280139073,0.31319468,82531.0,82530.0,0.40419238]
[1742280139574,0.31319468,82531.0,82530.0,0.40319238]
[1742280139761,0.31319468,82531.0,82530.0,0.40327114]
[1742280140162,0.31319468,82531.0,82478.0,0.3608]
[1742280140163,0.4137,82530.0,82478.0,0.3608]
[1742280140365,0.1212659,82470.0,82469.0,0.75747006]
[1742280140564,0.3912659,82470.0,82469.0,0.59063136]
[1742280140869,0.3892659,82470.0,82469.0,0.12533917]
[1742280141570,0.7450659,82470.0,82469.0,7e-08]
[1742280142069,0.7450659,82470.0,82461.0,0.00018183]
[1742280142070,0.1152776,82462.0,82461.0,1e-07]
[1742280142270,0.4960776,82462.0,82461.0,1e-07]
[1742280143473,0.4970776,82462.0,82461.0,1e-07]
[1742280143673,0.6297776,82462.0,82461.0,1e-07]
[1742280144568,0.6307776,82462.0,82461.0,1e-07]
[1742280145564,0.68969608,82462.0,82461.0,1e-07]
[1742280147974,0.55699608,82462.0,82461.0,0.27981657]
[1742280148170,0.55699608,82462.0,82461.0,0.15853747]
[1742280148872,0.53699608,82462.0,82461.0,0.17530758]
[1742280149766,0.53699608,82462.0,82461.0,0.15853747]
[1742280149970,0.4780776,82462.0,82461.0,1e-07]
[1742280150671,0.4780776,82462.0,82461.0,0.17530758]
[1742280150874,0.4780776,82462.0,82461.0,0.29658668]
[1742280152879,0.4780776,82462.0,82461.0,0.42458668]
[1742280153083,0.4780776,82462.0,82461.0,0.30330758]
[1742280153272,0.4780776,82462.0,82461.0,0.42458668]
[1742280153676,0.4780776,82462.0,82461.0,0.55138668]
[1742280154183,0.002,82462.0,82461.0,0.55138668]
[1742280155471,0.4840776,82462.0,82461.0,0.55138668]
[1742280157683,0.4840776,82462.0,82461.0,0.33300161]
[1742280158884,0.4840776,82462.0,82461.0,0.72029548]
[1742280159473,0.4840776,82462.0,82461.0,0.59901638]
[1742280159688,0.4840776,82462.0,82461.0,0.47221638]
[1742280159881,0.4840776,82462.0,82455.0,0.121287]
[1742280159882,0.1212894,82454.0,82443.0,1.28148]
[1742280160085,0.1212894,82454.0,82453.0,0.12147273]
[1742280160280,0.1819399,82453.0,82452.0,0.121291]
[1742280160878,0.2478399,82453.0,82452.0,0.121291]
[1742280161376,0.1212923,82452.0,82451.0,0.19046]
[1742280162388,0.1871923,82452.0,82451.0,0.19046]
[1742280162690,0.1212923,82452.0,82451.0,0.3117538]
[1742280163380,0.1222923,82452.0,82451.0,0.3117538]
[1742280163589,0.1222923,82452.0,82451.0,0.3778538]
[1742280163980,0.1232923,82452.0,82451.0,0.3778538]
[1742280164792,0.1232923,82452.0,82451.0,0.6478538]
[1742280165182,0.1232923,82452.0,82451.0,0.5216938]
[1742280165490,0.1232923,82452.0,82451.0,0.6475338]
[1742280166778,0.1232923,82452.0,82451.0,0.76482767]
[1742280171592,0.1232923,82452.0,82451.0,0.6075338]
[1742280172890,0.1232923,82452.0,82451.0,0.6993338]
[1742280173489,0.18226582,82452.0,82451.0,0.6993338]
[1742280174187,0.06097352,82452.0,82451.0,0.9342938]
[1742280174378,0.06097352,82452.0,82451.0,0.85582767]
[1742280174578,0.06097352,82452.0,82451.0,0.7285338]
[1742280174786,0.18226582,82452.0,82451.0,0.7285338]
[1742280174996,0.06097352,82452.0,82451.0,0.7285338]
[1742280175187,0.06097352,82452.0,82451.0,0.6034938]
[1742280175494,0.18226582,82452.0,82451.0,0.7287338]
[1742280176991,0.18226582,82452.0,82451.0,0.7285738]
[1742280178793,0.06097352,82452.0,82451.0,1.11586767]
[1742280179383,0.18226582,82452.0,82451.0,1.11586767]
[1742280180086,0.06097352,82452.0,82451.0,1.11586767]
[1742280182281,0.18226582,82452.0,82451.0,1.11586767]
[1742280183084,0.18226582,82452.0,82451.0,1.11546767]
[1742280185592,0.18226582,82452.0,82451.0,0.2516938]
[1742280185798,0.37066582,82452.0,82451.0,0.25484]
[1742280186094,0.37066582,82452.0,82451.0,0.3761338]
[1742280187294,0.37066582,82452.0,82451.0,0.25484]
[1742280187681,0.37066582,82452.0,82451.0,0.3761338]
[1742280189698,0.28066582,82452.0,82451.0,0.6361338]
[1742280190288,0.28066582,82452.0,82451.0,0.63898767]
[1742280190490,0.37496582,82452.0,82451.0,0.3758538]
[1742280190896,0.37496582,82452.0,82451.0,0.12105066]
[1742280191398,0.37496582,82452.0,82451.0,0.24234446]
[1742280191700,0.37496582,82452.0,82451.0,0.2453338]
[1742280194296,0.060652,82444.0,82432.0,0.01554931]
[1742280194484,0.1213468,82415.0,82409.0,0.218955]
[1742280194689,0.8429468,82415.0,82409.0,0.0976]
[1742280195096,0.8429468,82415.0,82404.0,0.43741951]
[1742280195293,0.1213615,82405.0,82404.0,0.43741951]
[1742280195594,0.3608,82405.0,82404.0,0.70140995]
[1742280195799,0.3608,82405.0,82404.0,0.514203]
[1742280195993,0.326319,82405.0,82404.0,0.514243]
[1742280196195,0.3608,82432.0,82422.0,0.1213365]
[1742280196499,0.3608,82432.0,82422.0,0.4821365]
[1742280196701,0.0985,82431.0,82430.0,0.1213247]
[1742280197000,0.0985,82431.0,82430.0,0.2481647]
[1742280197796,0.0934,82441.0,82440.0,0.12131]
[1742280198003,0.1919,82441.0,82440.0,0.60887]
[1742280198299,0.00018194,82449.0,82448.0,0.1212982]
[1742280198498,0.00018194,82449.0,82448.0,1.7997782]
[1742280198891,0.00018194,82449.0,82448.0,1.4389782]
[1742280199202,0.00018194,82449.0,82448.0,1.5275782]
[1742280199892,0.00118194,82449.0,82448.0,1.5275782]
[1742280201294,0.00218194,82449.0,82448.0,1.5272982]
[1742280204799,0.00218194,82449.0,82448.0,1.55083206]
[1742280208605,4e-08,82449.0,82448.0,1.5272982]
[1742280208908,0.19404881,82460.0,82459.0,0.121282]
[1742280209113,0.0976,82471.0,82470.0,0.1212659]
[1742280209408,0.3608,82498.0,82471.0,0.5646]
[1742280209409,0.0992,82492.0,82471.0,0.5646]
[1742280209711,0.1212496,82482.0,82481.0,0.1212496]
[1742280209917,0.2212455,82484.0,82483.0,0.1212468]
[1742280210300,0.1,82484.0,82483.0,0.1212468]
[1742280210806,0.3608,82512.0,82492.0,0.1212335]
[1742280211006,0.0606131,82497.0,82492.0,0.5071535]
[1742280211208,0.44006617,82496.0,82492.0,0.5071535]
[1742280211407,0.32019727,82496.0,82492.0,0.5071535]
[1742280211604,0.31883727,82496.0,82492.0,0.3812335]
[1742280211809,0.31883727,82496.0,82492.0,0.5070735]
[1742280212106,0.32597263,82493.0,82492.0,0.5090735]
[1742280212304,0.32597263,82493.0,82492.0,0.7122735]
[1742280212897,0.32597263,82493.0,82492.0,0.7092735]
[1742280213615,0.001,82493.0,82492.0,0.7092735]
[1742280214519,0.00018194,82501.0,82500.0,0.1212218]
[1742280214705,0.1212033,82514.0,82513.0,0.1211997]
[1742280215008,0.0606021,82512.0,82500.0,1.2814]
[1742280215213,0.1212203,82501.0,82500.0,1.2814]
[1742280215409,0.0606056,82509.0,82505.0,0.0606056]
[1742280215607,0.121213,82507.0,82506.0,0.1212115]
[1742280215910,0.118213,82507.0,82506.0,0.1036]